Cogmind - Beta 13 @@@ ROGUE MODE // 2024.04.03 @ 22:53:34 Player: Westakvia Result: Destroyed by G-34 Mercenary with Small Laser Performance ------------- Evolutions (0) 0 Regions Visited (1) 200 Robots Destroyed (9) 45 Value Destroyed (171) 171 Prototype IDs (2) 40 Alien Tech Used (0) 0 Bonus (0) 0 TOTAL SCORE: 456 Bonus ------- None Cogmind --------- Core Integrity 0/250 Matter 260/300 Energy 90/100 System Corruption 0% Temperature Cool (46) Movement Core (50) Location -10/Materials Parts ------- > --- POWER (1) -------- (None) > --- PROPULSION (2) --- (None) > --- UTILITY (2) ------ (None) > --- WEAPON (2) ------- Grenade Launcher > --- INVENTORY (5) ---- Wheel Wheel Light Assault Rifle Peak State ------------ > --- POWER ------------ Light Ion Engine > --- PROPULSION ------- Aluminum Leg Aluminum Leg > --- UTILITY ---------- Heat Sink > --- WEAPON ----------- EM Pulse Gun Light Assault Rifle > --- INVENTORY -------- Aluminum Leg Wheel Wheel Light Assault Rifle [Rating: 6] Favorites ----------- Power Light Ion Engine Engine Light Ion Engine Propulsion Aluminum Leg Leg Aluminum Leg Wheel Wheel Utility Heat Sink Device Heat Sink Weapon Light Assault Rifle Energy Gun EM Pulse Gun Ballistic Gun Light Assault Rifle Launcher Grenade Launcher Build | -11 -10 ------- Run | Yrd Mat Slots Evolved . | . . Power . | . . Propulsion . | . . Utility . | . . Weapon . | . . Parts Attached 12 | 10 2 Power 1 | 1 . Engine 1 | 1 . Core . | . . Reactor . | . . Propulsion 6 | 6 . Treads . | . . Leg 4 | 4 . Wheel 2 | 2 . Hover . | . . Flight . | . . Utility 1 | 1 . Device 1 | 1 . Storage . | . . Processor . | . . Hackware . | . . Protection . | . . Artifact . | . . Weapon 4 | 2 2 Energy Gun 1 | 1 . Energy Cannon . | . . Ballistic Gun 2 | 1 1 Ballistic Cannon . | . . Launcher 1 | . 1 Special Weapon . | . . Impact Weapon . | . . Slashing Weapon . | . . Piercing Weapon . | . . Special Melee Weapon . | . . Unidentified Prototypes . | . . Parts Lost 6 | . 6 Power 1 | . 1 Propulsion 2 | . 2 Utility 1 | . 1 Weapon 2 | . 2 Highest Loss Streak 3 | . 3 To Critical Strikes . | . . Average Slot Usage (%) 80 | . 80 Engine 14 | . 14 Leg 26 | . 26 Device 12 | . 12 Energy Gun 12 | . 12 Ballistic Gun 14 | . 14 Naked Turns . | . . Heaviest Build 7 | 7 7 Greatest Support 20 | 20 20 Greatest Overweight (x) . | . . Average Overweight (x) . | . . Largest Inventory Capacity 5 | 5 5 Average Capacity 5 | 5 5 Most Carried 5 | 5 5 Average Carried 3 | 2 4 Final Capacity 5 | 5 5 Final Carried 4 | 4 3 Class Distribution -------------------- 100% | Mutant Dominant Class ---------------- Mutant | -10/Materials Resources | -11 -10 ----------- Run | Yrd Mat Matter Collected 299 | 293 6 Remotely . | . . Salvage Created 209 | 29 180 Parts 17 | 2 15 Haulers Intercepted . | . . Recyclers Shooed 1 | . 1 Parts Field Recycled . | . . Retrieved Matter . | . . Parts Self-Destructed . | . . Prevented . | . . Kills | -11 -10 ------- Run | Yrd Mat Combat Hostiles Destroyed 6 | 1 5 Guns 2 | . 2 AOE 4 | 1 3 Classes Destroyed 3 | 1 2 Builder 3 | . 3 Swarmer 2 | . 2 Grunt 4 | 1 3 Best Kill Streak 5 | 1 5 Combat Bots Only 3 | 1 3 Max Kills in Single Turn 3 | 1 3 Gunslinging . | . . Exploded 2 | 1 2 Melee . | . . Uniques/NPCs Destroyed . | . . Combat | -11 -10 -------- Run | Yrd Mat Hostile Shots Fired 86 | 3 83 Missed 25 | . 25 Damage Taken 712 | 32 680 Core 251 | . 251 Absorbed by Shields . | . . Core Remaining (%) 100 | 100 . Volleys Fired 25 | 3 22 Largest 2 | 2 2 Hottest 60 | 60 60 Shots Fired 41 | 6 35 Gun 39 | 6 33 Cannon . | . . Launcher 2 | . 2 Special . | . . Kinetic 29 | 3 26 Thermal . | . . Explosive 2 | . 2 Electromagnetic 10 | 3 7 Robot Hit Streak 6 | 2 6 Robot Miss Streak 5 | 3 5 Penetration Max . | . . Secondary Targets . | . . Shots Hit Robots 23 | 2 21 Core Hits 15 | 1 14 Critical Kills . | . . Critical Parts Destroyed . | . . Critical Strikes . | . . Melee Attacks . | . . Impact . | . . Slashing . | . . Piercing . | . . Sneak Attacks . | . . Combat Hostiles . | . . Follow-up Attacks . | . . Damage Inflicted 554 | 85 469 Guns 222 | 20 202 Cannons . | . . Explosions 332 | 65 267 Melee . | . . Ramming . | . . Kinetic 138 | 8 130 Thermal 116 | 65 51 Explosive 216 | . 216 Electromagnetic 84 | 12 72 Impact . | . . Slashing . | . . Piercing . | . . Highest Corruption . | . . Average Corruption . | . . Corruption Purged . | . . Corruption Blocked . | . . Overload Shots . | . . Overflow Damage 6 | . 6 Projectiles . | . . Explosions 6 | . 6 Melee . | . . Knockbacks . | . . Impact . | . . Kinetic . | . . Secondary . | . . Self-Inflicted Damage 18 | . 18 Shots 2 | . 2 Rammed . | . . Targets Rammed . | . . Kicked . | . . Crushed . | . . Highest Temperature 61 | 38 61 Average Temperature 24 | 24 24 Received Heat Transfer 330 | 18 312 Siege Activations . | . . Robots Corrupted . | . . Combat Hostiles . | . . Parts Fried . | . . Impact Corruptions . | . . Robots Melted . | . . Combat Hostiles . | . . Parts Melted . | . . Heat Transferred 100 | 50 50 Parts Sabotaged . | . . Parts Stolen . | . . Parts Stripped . | . . Power Chain Reactions 2 | 1 1 Alert | -11 -10 ------- Run | Yrd Mat Peak Influence 193 | 20 193 Initial 13 | . 13 Average 36 | 7 50 Maximum Alert Level . | . . Low Security (%) 100 | 100 100 Level 1 . | . . Level 2 . | . . Level 3 . | . . Level 4 . | . . Level 5 . | . . High Security . | . . Max Security . | . . Squads Dispatched 2 | . 2 Investigation 1 | . 1 Extermination . | . . Reinforcement 1 | . 1 Assault . | . . Garrison . | . . Intercept . | . . Searches Triggered . | . . Construction Impeded . | . . Haulers Reinforced . | . . Active Scanning Responses . | . . Cargo Convoy Interrupts . | . . Stealth | -11 -10 --------- Run | Yrd Mat Distress Signals 2 | . 2 Communications Jammed . | . . Distress Signals . | . . Times Spotted 16 | 1 15 Peak Tracking Total 8 | 1 8 Tactical Retreats 1 | . 1 Traps | -11 -10 ------- Run | Yrd Mat Traps Triggered . | . . Indirectly . | . . Trap Hack Attempts . | . . Triggered . | . . Disarmed . | . . Reprogrammed . | . . Reused . | . . Traps Extracted . | . . Installed . | . . Triggered 1 | . 1 Machines | -11 -10 ---------- Run | Yrd Mat Machines Disabled . | . . Max in Single Turn . | . . Machines Repaired . | . . Machines Dismantled . | . . Machines Sabotaged . | . . Overloaded Fab Kills . | . . Hacking | -11 -10 --------- Run | Yrd Mat Machines Accessed 2 | . 2 Terminals 2 | . 2 Fabricators . | . . Repair Stations . | . . Recycling Units . | . . Scanalyzers . | . . Garrison Access . | . . Total Hacks 7 | . 7 Successful 5 | . 5 Failed 2 | . 2 Catastrophic . | . . Database Lockouts . | . . Manual . | . . Terminals 7 | . 7 Fabricators . | . . Repair Stations . | . . Recycling Units . | . . Scanalyzers . | . . Garrison Access . | . . Terminal Hacks 5 | . 5 Record 1 | . 1 Prototype ID Bank 1 | . 1 Alert Level 1 | . 1 Locate Traps 1 | . 1 Investigation Status 1 | . 1 Fabricator Hacks . | . . Repair Station Hacks . | . . Recycling Unit Hacks . | . . Scanalyzer . | . . Garrison Access Hacks . | . . Unauthorized Hacks . | . . Terminals . | . . Fabricators . | . . Repair Stations . | . . Recycling Units . | . . Scanalyzers . | . . Garrison Access . | . . Data Cores Recovered . | . . Used . | . . Hacking Detections 2 | . 2 Full Trace Events 1 | . 1 Feedback Events . | . . Feedback Blocked . | . . Robot Schematics Acquired . | . . Robots Built . | . . Authchips . | . . Time . | . . Total Robot Build Rating . | . . Part Schematics Acquired . | . . Parts Built . | . . Authchips . | . . Time . | . . Total Part Build Rating . | . . Parts Repaired . | . . Time . | . . Parts Recycled . | . . Recycled Matter . | . . Retrieved Matter . | . . Retrieved Components . | . . Parts Scanalyzed . | . . Part Schematics Acquired . | . . Parts Damaged . | . . Bothacking | -11 -10 ------------ Run | Yrd Mat Used RIF Installer . | . . Robots Hacked . | . . Non-combat . | . . Combat . | . . Robot Hacks Applied . | . . Relay Couplers Released . | . . Fabnet Peak Effective % . | . . Robots Rewired . | . . Allies Hacked . | . . Hacks Repelled . | . . Allies | -11 -10 -------- Run | Yrd Mat Total Allies . | . . Largest Group . | . . Highest-Rated Group . | . . Highest-Rated Ally . | . . Total Orders . | . . Ally Attacks . | . . Total Damage . | . . Kills . | . . Allies Corrupted . | . . Allies Melted . | . . Intel | -11 -10 ------- Run | Yrd Mat Robot Analysis Total . | . . Derelict Logs Recovered . | . . Drone Launches . | . . Drone Recoveries . | . . Exploration | -11 -10 ------------- Run | Yrd Mat Turns Passed 485 | 158 327 Spaces Moved 315 | 121 194 Core 30 | 30 . Treads . | . . Legs 285 | 91 194 Wheels . | . . Hover . | . . Flight . | . . Fastest Speed 50 | 50 120 Average Speed 113 | 102 120 Slowest Speed 120 | 120 120 Overloaded Moves . | . . Propulsion Burnouts . | . . Robots Hopped . | . . Cave-ins Triggered . | . . Exploration Rate (%) 13 | 7 20 Regions Visited 1 Branch Regions . Pre-discovered Areas . | . . Known Exits Taken . | . . Unknown Exits Taken 1 | 1 . Scrap Searched . | . . Spaces Dug . | . . Terrain Destroyed 14 | . 14 Melee . | . . Projectile . | . . AOE 14 | . 14 Terrain Rammed . | . . Walls Destroyed . | . . Machines Disabled . | . . Actions | -11 -10 --------- Run | Yrd Mat Total 406 | 147 259 Wait 43 | 4 39 Move 314 | 120 194 Hop . | . . Pick Up 11 | 10 1 Fast Attach . | . . Attach 7 | 6 1 Detach . | . . Swap 5 | 4 1 Drop 1 | . 1 Fire 25 | 3 22 Melee . | . . Ram . | . . Kick . | . . Crush . | . . Escape Stasis . | . . Rewire . | . . Trap . | . . Miscellaneous . | . . Route ------- -11/Scrapyard -10/Materials History --------- Turn | Location | Event 2 | -11/Scrapyard | Met Revision 17 92 | -11/Scrapyard | Discovered new exit (range 8) 159 | -11/Scrapyard | Entered Materials 307 | -10/Materials | Build established: Mutant 474 | -10/Materials | Core integrity fell below 50% 477 | -10/Materials | Lost 3 parts (1n1u1w) 484 | -10/Materials | Core integrity fell below 20% 486 | -10/Materials | Destroyed by G-34 Mercenary with Small Laser Last Messages --------------- Acquired 6 matter. R-06 Scavenger collects Lgt. Ion Engine. W-16 Scout sends out distress signal. U-05 Engineer destroyed. G-34 Mercenary destroyed. [Achievement: Storm Trooper] Destroyed Hover Unit. Lgt. Ion Engine destroyed. ALERT: Hostiles spotted, dispatching reinforcements to Terminal M003. [Achievement: Uninvited Guest] Lgt. Assault Rifle destroyed. G-34 Mercenary destroyed. U-05 Engineer destroyed. G-34 Mercenary destroyed. U-05 Engineer lays Concrete. U-05 Engineer destroyed. Aluminum Leg destroyed. Destroyed Aluminum Leg. [Achievement: First Step to Greatness] Map ----- +----------------------------------------------------+ | ???????????????????????????????????????????????? | | ???????????????????????????????????????????????? | | ???????????????????????????????????????????????? | | ???????????????????????????????????????????????? | | ???????????? ??????????????????????????????????? | | ???????????? ??????????????????????????????????? | | ???????????? ?????????????###??????????????????? | | ???????????? ???????????? #??????????????????? | | ???????????? ???????????? #??????????????????? | | ???????????? ???????????? #??????????????????? | | ???????????? ????????????w #??????????????????? | | ???????????# #??????????? #??????????????????? | | ???????????# #??????????? #??????????????????? | | ???????????# #??????????? +??????????????????? | | ???????????# #?????????^# #??????????????????? | | ???????????# #??????????# #??##??????????????? | | ???????????# #?????????## ##? ???????????????? | | ???????????# #??########= # "???????????????? | | ???????##### #??# %! # ????????????????? | | ???????# + #??# !|% ?????????????????? | | ???????# # #??# % =*[ #?????????????????? | | ???????# # #### ""# %g=*##????????????????? | | ???????# " # #??# #????????????????? | | ???????# T # #???% =[ #????????????????? | | ???????# " # #???#*!! #????????????????? | | ######## # #???#@| #??????????????????? | | # ###+## #???# #??????????????????? | | # # #???# #??????????????????? | | ## ###+####?# #??????????????????? | | ?### # # #? #?????????????????? | | ???######### # #? #?????????????????? | | ???????????# # #? #?????????????????? | | ??????????## # " #? #?????????????????? | | ??????????#T # "" ## #?????????????????? | | ?########### # "" ### ##?????????????????? | | ?# # # """ #?? #??????????????????? | | ?# # # "" #?? gg#??????????????????? | | ?# """ # # """ #?? #??????????????????? | | ?# """"" + # """ #?? ??????????????????? | | ?# """"" # # """ #?? #??????????????????? | | ?# """"" # # " #?? #??????????????????? | | ?# """ # # #??#+#???????????????????? | | ?# ############????????????????????????? | | ?###########???????????????????????????????????? | | ???????????????????????????????????????????????? | | ???????????????????????????????????????????????? | | ???????????????????????????????????????????????? | | ???????????????????????????????????????????????? | | ???????????????????????????????????????????????? | | | +----------------------------------------------------+ Best States ------------- Heat Dissipation 35 Energy Generation 10 Energy Capacity 125 Matter Stores 300 Matter Capacity 300 Sight Range 16 Terrain Scan Density 10 Evasion (%) 55 Item Schematics ----------------- None Robot Schematics ------------------ None Fabricated ------------ Nothing Alien Tech Used ----------------- None Achievements -------------- First Step to Greatness Storm Trooper Uninvited Guest Challenges ------------ None Game ------ Seed MicroCooledFlail Manual? 0 Play Time 00:15:44 Cumulative 0.2 hours Start 2024.04.03 @ 22:37:01 End 2024.04.03 @ 22:53:34 Sessions 1 Manual Loads 0 Difficulty Rogue Special Mode None Game No. 1 Rogue 1 Adventurer 0 Explorer 0 Win Type - Total 0 Types 0/0/0/0/0/0/0/0/0 Lore% 0 Gallery% 0 Achievement% 1 Wizard Run 0 Options --------- Layout 1 ASCII 0 Keyboard 0 Movement Mouse Keybinds 0 Fullscreen 1 Font 24/CogTall Map View 50x35 Zoom Use 0% Tactical HUD 0 Map Filters NONE Filters NONE Steam 1 RUN: 7087ed99-2254-4ba0-ab88-debc6813e250